bitfinex-derivatives/quotes_ETHF0:USTF0_20250326
["timestamp","ask_amount","ask_price","bid_price","bid_amount"]
[1742988127552,3.11624043,2074.0,2073.9,40.8]
[1742988129362,3.11624043,2074.0,2073.9,42.92]
[1742988131060,3.11624043,2074.0,2073.9,40.8]
[1742988139557,0.00724043,2074.0,2073.9,45.9978]
[1742988143364,0.00724043,2074.0,2073.9,44.0078]
[1742988144264,0.00724043,2074.0,2073.9,40.8]
[1742988144470,0.00724043,2074.0,2073.9,44.0078]
[1742988144966,0.00724043,2074.0,2073.9,44.4378]
[1742988145267,0.00724043,2074.0,2073.9,44.0078]
[1742988145458,0.00724043,2074.0,2073.9,40.8]
[1742988145665,0.00724043,2074.0,2073.7,1.3571]
[1742988145870,3.101,2073.9,2073.7,2.5671]
[1742988146068,1.4155,2073.8,2073.7,1.914]
[1742988146261,1.4155,2073.8,2073.7,42.714]
[1742988147065,1.4155,2073.8,2073.7,44.0337]
[1742988147670,1.4155,2073.8,2073.7,47.2415]
[1742988149367,1.4155,2073.8,2073.7,44.0337]
[1742988151171,3.10724043,2074.0,2073.7,44.0337]
[1742988151366,3.10724043,2074.0,2073.8,1.3944]
[1742988151571,0.00724043,2074.0,2073.8,5.0544]
[1742988151768,0.00724043,2074.0,2073.9,2.0474]
[1742988151972,0.00724043,2074.0,2073.9,45.5874]
[1742988152467,1.39064043,2074.0,2073.9,45.5874]
[1742988155167,0.00724043,2074.0,2073.9,45.5874]
[1742988156075,1.32554043,2074.0,2073.9,45.5874]
[1742988160280,1.32554043,2074.0,2073.9,44.7874]
[1742988161775,1.32554043,2074.0,2073.9,40.8]
[1742988161976,1.32554043,2074.0,2073.5,5.3141]
[1742988162175,0.6481,2073.9,2073.6,1.406]
[1742988162381,4.388,2073.8,2073.6,6.0817]
[1742988162578,1.3639,2073.7,2073.6,6.0817]
[1742988163078,1.3639,2073.7,2073.6,46.8817]
[1742988165675,1.3639,2073.7,2073.6,50.0895]
[1742988166474,1.3639,2073.7,2073.6,7.8835]
[1742988168276,1.3639,2073.7,2073.6,9.2268]
[1742988172183,1.3639,2073.7,2073.6,6.019]
[1742988172583,1.3639,2073.7,2073.6,9.2268]
[1742988175087,1.3639,2073.7,2073.6,6.019]
[1742988175271,1.3639,2073.7,2073.6,9.2268]
[1742988179682,0.00724043,2074.0,2073.6,9.2268]
[1742988179995,4.48714043,2074.0,2073.7,1.3366]
[1742988180191,1.3809,2073.9,2073.7,6.5866]
[1742988180390,1.3809,2073.9,2073.8,2.0006]
[1742988180587,1.3809,2073.9,2073.8,4.6006]
[1742988181085,1.3809,2073.9,2073.8,2.0006]
[1742988181287,1.3809,2073.9,2073.8,2.4106]
[1742988181486,1.3809,2073.9,2073.8,2.0006]
[1742988182089,1.3809,2073.9,2073.8,4.0906]
[1742988183092,1.3809,2073.9,2073.6,3.9035]
[1742988183294,1.3809,2073.9,2073.7,2.05]
[1742988183487,1.3809,2073.9,2073.8,1.4107]
[1742988183788,1.3809,2073.9,2073.8,2.7107]
[1742988185095,1.3809,2073.9,2073.8,1.3]
[1742988186386,1.3809,2073.9,2073.8,1.9863]
[1742988188493,1.3809,2073.9,2073.8,5.1941]
[1742988189196,3.10624043,2074.0,2073.8,5.1941]
[1742988189392,3.10624043,2074.0,2073.9,2.0151]
[1742988189599,3.10624043,2074.0,2073.9,5.4551]
[1742988193293,0.00724043,2074.0,2073.9,5.4551]
[1742988194287,0.00724043,2074.0,2073.9,2.0151]
[1742988194593,0.00724043,2074.0,2073.9,4.1351]
[1742988194794,0.00724043,2074.0,2073.9,2.0151]
[1742988195390,0.00724043,2074.0,2073.9,1.0459]
[1742988195597,0.00724043,2074.0,2073.9,1.967]
[1742988197795,0.00724043,2074.0,2073.9,5.1748]
[1742988198199,0.00724043,2074.0,2073.9,5.6248]
[1742988198398,0.00724043,2074.0,2073.9,5.1748]
[1742988200401,0.00724043,2074.0,2073.9,5.6048]
[1742988200591,0.00724043,2074.0,2073.9,5.1748]
[1742988201897,0.00724043,2074.0,2073.9,1.967]
[1742988202100,0.00724043,2074.0,2073.9,5.1748]
[1742988203589,0.00724043,2074.0,2073.9,1.967]
[1742988203997,0.00724043,2074.0,2073.9,5.1748]
[1742988207292,0.00724043,2074.0,2073.9,1.967]
[1742988207493,0.00724043,2074.0,2073.9,7.6648]
[1742988208307,3.099,2074.3,2073.9,7.6648]
[1742988208608,3.099,2074.3,2074.2,3.2078]
[1742988208806,3.099,2074.3,2074.2,6.3278]
[1742988209606,3.099,2074.3,2074.2,7.6232]
[1742988210991,3.099,2074.4,2074.2,7.6232]
[1742988211196,0.00724043,2074.5,2074.3,1.2954]
[1742988211396,0.00724043,2074.5,2074.3,4.0354]
[1742988211602,0.00724043,2074.5,2074.4,1.3785]
[1742988211802,0.00724043,2074.5,2074.4,2.7749]
[1742988212009,0.00724043,2074.5,2074.4,4.8249]
[1742988213604,0.00724043,2074.5,2074.4,4.8749]
[1742988215305,0.00724043,2074.5,2074.4,2.7749]
[1742988215608,0.00724043,2074.5,2074.4,5.1049]
[1742988217510,0.00724043,2074.5,2074.4,8.3127]
[1742988221510,1.34524043,2074.5,2074.4,8.3127]
[1742988222010,1.34524043,2074.5,2074.4,5.9827]
[1742988222211,1.34524043,2074.5,2074.4,8.3527]
[1742988222612,1.34524043,2074.5,2074.4,5.9827]
[1742988223912,1.34524043,2074.5,2074.4,6.3727]
[1742988224112,1.34524043,2074.5,2074.4,5.9827]
[1742988225614,1.34524043,2074.5,2074.4,3.2078]
[1742988225816,1.99334043,2074.5,2074.4,3.2078]
[1742988227718,2.66334043,2074.5,2074.4,3.2078]
[1742988232222,2.66334043,2074.5,2074.1,1.3074]
[1742988232525,1.3292,2074.4,2074.0,3.21504043]
[1742988232724,3.098,2074.3,2074.0,4.43504043]
[1742988233018,1.4076,2074.2,2074.0,4.43504043]
[1742988233323,2.0553,2074.2,2074.0,4.43504043]
[1742988233814,1.4076,2074.1,2074.0,4.43504043]
[1742988236715,4.5056,2074.1,2074.0,4.43504043]
[1742988236915,3.098,2074.2,2074.0,4.43504043]
[1742988237117,1.2882,2074.3,2074.1,2.732]
[1742988237329,1.2882,2074.3,2074.2,1.3896]
[1742988237524,1.2882,2074.3,2074.2,4.1296]
[1742988240530,3.10524043,2074.5,2074.2,4.1296]
[1742988240730,3.10524043,2074.5,2074.3,1.3015]
[1742988241033,1.2985,2074.4,2074.3,3.4015]
[1742988242323,3.10524043,2074.5,2074.3,3.4015]
[1742988242528,3.10524043,2074.5,2074.4,1.2931]
[1742988257946,3.10524043,2074.5,2074.3,0.703]
[1742988257947,8.81304043,2074.5,2074.2,3.2078]
[1742988258149,2.6615,2074.4,2074.2,3.2078]
[1742988258335,1.3637,2074.3,2074.2,3.2078]
[1742988265551,1.3637,2074.3,2074.0,4.57654043]
[1742988265753,3.098,2074.2,2074.0,5.65654043]
[1742988265953,1.3212,2074.1,2074.0,5.65654043]
[1742988266553,1.3212,2074.1,2074.0,4.29504043]
[1742988267255,1.9686,2074.1,2074.0,4.29504043]
[1742988270248,1.3212,2074.1,2074.0,4.29504043]
[1742988270645,1.3212,2074.1,2074.0,5.00184043]
[1742988271447,0.97556491,2074.4,2074.0,5.00184043]
[1742988271646,0.97556491,2074.4,2074.1,1.973]
[1742988271851,3.098,2074.4,2074.2,1.2818]
[1742988272053,3.098,2074.4,2074.2,1.6818]
[1742988272253,4.3821,2074.4,2074.3,0.7068]
[1742988272558,3.098,2074.4,2074.3,4.2186]
[1742988272757,3.098,2074.4,2074.3,1.9886]
[1742988273354,3.098,2074.4,2074.3,2.4286]
[1742988273559,3.098,2074.4,2074.3,1.9886]
[1742988276360,3.098,2074.4,2074.1,0.6912]
[1742988276559,3.098,2074.4,2074.2,2.0019]
[1742988276958,3.098,2074.4,2074.3,1.3294]
[1742988291772,4.3779,2074.4,2074.3,1.3294]
[1742988294474,4.3779,2074.4,2074.2,0.6725]
[1742988294673,4.3779,2074.4,2074.2,2.0458]
[1742988294674,1.3362,2074.3,2074.2,2.0458]
[1742988301777,1.3362,2074.3,2074.1,3.899]
[1742988301970,0.6421,2074.2,2074.1,5.219]
[1742988302976,1.3362,2074.3,2074.1,5.219]
[1742988303173,1.3362,2074.3,2074.1,6.6085]
[1742988304278,1.3362,2074.3,2074.1,7.271]
[1742988307274,1.3362,2074.3,2074.1,4.0632]
[1742988308077,2.2978597,2074.3,2074.2,1.3999]
[1742988308464,5.3958597,2074.3,2074.2,1.3999]
[1742988308672,4.4342,2074.3,2074.2,1.3999]
[1742988314486,4.4342,2074.3,2074.1,2.6287]
[1742988314680,1.3973,2074.2,2074.1,4.0487]
[1742988314871,1.3973,2074.2,2074.1,2.7737]
[1742988331798,1.3973,2074.2,2074.1,4.1412]
[1742988339299,4.4943,2074.2,2074.1,4.1412]
[1742988339606,4.4943,2074.2,2074.1,7.349]
[1742988340306,3.097,2074.3,2074.1,7.349]
[1742988340507,2.24724696,2074.4,2074.2,1.3481]
[1742988340806,4.3975,2074.4,2074.2,3.6881]
[1742988341197,4.3975,2074.4,2074.3,1.3481]
[1742988342407,4.3975,2074.4,2074.3,1.7981]
[1742988342603,4.3975,2074.4,2074.3,1.3481]
[1742988357914,1.3005,2074.4,2074.3,1.3481]
[1742988358114,4.3965,2074.4,2074.3,1.3481]
[1742988361617,1.3005,2074.4,2074.3,1.3481]
[1742988361823,4.3965,2074.4,2074.3,1.3481]
[1742988380338,4.3965,2074.4,2074.3,1.7381]
[1742988380536,4.3965,2074.4,2074.3,1.3481]
[1742988386244,1.3005,2074.4,2074.3,1.7381]
[1742988386538,1.3005,2074.4,2074.3,3.7381]
[1742988386748,1.3005,2074.4,2074.3,44.5381]
[1742988388945,1.3005,2074.4,2074.3,42.1481]
[1742988389137,1.3005,2074.4,2074.3,44.3181]
[1742988392441,1.3005,2074.4,2074.3,47.5259]
[1742988394042,1.3005,2074.4,2074.3,44.3181]
[1742988398246,1.3005,2074.4,2074.3,42.1481]
[1742988401046,1.3005,2074.4,2074.3,40.8]
[1742988401238,2.5929,2074.4,2074.0,0.00724043]
[1742988401443,3.52365661,2074.4,2074.0,0.14724043]
[1742988401745,3.2078,2074.2,2074.0,0.14724043]
[1742988401946,5.1377,2074.1,2074.0,0.14724043]
[1742988402147,5.7851,2074.1,2074.0,0.14724043]
[1742988403354,4.4927,2074.1,2074.0,0.14724043]
[1742988403554,1.3977,2074.1,2074.0,1.48484043]
[1742988403742,1.3977,2074.1,2074.0,2.81024043]
[1742988404156,1.3977,2074.1,2074.0,43.61024043]
[1742988404554,3.095,2074.2,2074.0,43.61024043]
[1742988404850,1.4061,2074.3,2074.1,1.3254]
[1742988405058,1.4061,2074.3,2074.1,6.9254]
[1742988405451,1.4061,2074.3,2074.2,1.3254]
[1742988405758,1.4061,2074.3,2074.2,3.6954]
[1742988406148,1.4061,2074.3,2074.2,44.4954]
[1742988410354,1.4061,2074.3,2074.2,47.7032]
[1742988411251,3.10224043,2074.5,2074.2,47.7032]
[1742988411453,1.3998,2074.4,2074.3,1.9962]
[1742988411652,1.3998,2074.4,2074.3,2.6738]
[1742988411859,1.3998,2074.4,2074.3,4.9338]
[1742988416866,0.00724043,2074.5,2074.3,4.9338]
[1742988417168,0.00724043,2074.5,2074.4,1.3013]
[1742988417367,0.00724043,2074.5,2074.4,3.9213]
[1742988417569,0.00724043,2074.5,2074.4,1.3013]
[1742988417763,0.00724043,2074.5,2074.4,3.4713]
[1742988419069,0.00724043,2074.5,2074.4,1.3013]
[1742988419270,0.00724043,2074.5,2074.4,3.6013]
[1742988419463,0.00724043,2074.5,2074.4,3.4213]
[1742988446686,0.00724043,2074.5,2074.4,6.6291]
[1742988462598,0.00724043,2074.5,2074.4,13.0091]
[1742988464010,0.00724043,2074.5,2074.4,8.5]
[1742988464701,0.68994043,2074.5,2074.4,8.5]
[1742988466602,0.68994043,2074.5,2074.4,49.3]
[1742988468107,1.99544043,2074.5,2074.4,49.3]
[1742988471310,1.99544043,2074.5,2074.4,8.5]
[1742988471822,1.99544043,2074.5,2074.4,49.3]
[1742988473309,1.99544043,2074.5,2074.0,15.32504043]
[1742988473310,4.49544043,2074.5,2074.0,0.00724043]
[1742988473515,3.2078,2074.3,2074.0,0.00724043]
[1742988473714,5.1548,2074.2,2074.1,40.8]
[1742988474306,5.1548,2074.2,2074.0,0.00724043]
[1742988474614,2.0439,2074.1,2074.0,2.26724043]
[1742988474804,1.3977,2074.1,2074.0,43.06724043]
[1742988475213,1.3977,2074.1,2074.0,40.80724043]
[1742988476210,2.0439,2074.1,2074.0,40.80724043]
[1742988479008,1.3977,2074.1,2074.0,40.80724043]
[1742988481518,1.3977,2074.1,2074.0,41.00724043]
[1742988481707,1.3787,2074.2,2074.0,41.00724043]
[1742988481904,0.00724043,2074.5,2074.1,5.8773]
[1742988482107,1.3787,2074.3,2074.2,1.2933]
[1742988482316,1.3787,2074.3,2074.2,3.4133]
[1742988484414,1.3787,2074.3,2074.2,4.05253668]
[1742988486324,0.00724043,2074.5,2074.2,4.05253668]
[1742988486517,0.2847,2074.4,2074.3,4.5382]
[1742988486717,0.2847,2074.4,2074.3,6.23703668]
[1742988487723,0.00724043,2074.5,2074.3,6.23703668]
[1742988487923,0.00724043,2074.5,2074.4,0.6661]
[1742988488125,0.00724043,2074.5,2074.4,1.3734]
[1742988488925,0.00724043,2074.5,2074.4,1.8134]
[1742988489124,0.00724043,2074.5,2074.4,1.3734]
[1742988489527,0.00724043,2074.5,2074.4,2.01274856]
[1742988491230,0.00724043,2074.5,2074.4,4.09274856]
[1742988491526,0.00724043,2074.5,2074.4,4.40274856]
[1742988493027,0.00724043,2074.5,2074.4,2.01274856]
[1742988493231,0.00724043,2074.5,2074.4,1.3734]
[1742988496728,0.00724043,2074.5,2074.4,2.0131219]
[1742988496925,0.00724043,2074.5,2074.4,2.4231219]
[1742988497126,0.00724043,2074.5,2074.4,2.0131219]
[1742988499936,0.00724043,2074.5,2074.4,4.2231219]
[1742988501734,0.00724043,2074.5,2074.4,5.6297219]
[1742988502734,0.00724043,2074.5,2074.4,5.5797219]
[1742988503635,0.00724043,2074.5,2074.4,5.5997219]
[1742988529161,3.091,2075.2,2074.4,11.1907219]
[1742988529363,3.091,2075.2,2075.1,3.2078]
[1742988529861,3.091,2075.2,2075.1,4.3075219]
[1742988530657,3.091,2075.2,2075.1,45.1075219]
[1742988532360,4.4194,2075.2,2075.1,45.1075219]
[1742988532762,4.4194,2075.2,2075.1,44.4678]
[1742988533261,4.4194,2075.2,2075.1,41.26]
[1742988534562,1.3284,2075.2,2075.1,41.26]
[1742988535158,4.4184,2075.2,2075.1,41.26]
[1742988535356,4.4184,2075.2,2075.1,40.8]
[1742988536569,1.3284,2075.2,2075.1,40.8]
[1742988537465,1.3284,2075.2,2074.9,1.4031]
[1742988537662,1.3284,2075.2,2074.9,4.2731]
[1742988537865,1.3284,2075.2,2074.9,7.4809]
[1742988538065,1.3284,2075.2,2075.0,42.1033]
[1742988538367,1.3284,2075.2,2075.1,1.3033]
[1742988540663,1.3284,2075.2,2075.1,1.7133]
[1742988540862,1.3284,2075.2,2075.1,1.3033]
[1742988541968,4.4184,2075.2,2075.1,3.5933]
[1742988542166,4.4184,2075.2,2075.1,4.896]
[1742988542361,4.4184,2075.2,2075.1,2.606]
[1742988542967,1.3284,2075.2,2075.1,2.606]
[1742988552080,1.3284,2075.2,2075.1,2.986]
[1742988552281,0.00724043,2075.4,2075.1,2.986]
[1742988552282,3.09624043,2075.4,2075.1,2.986]
[1742988552482,3.09624043,2075.4,2075.3,3.2078]
[1742988552982,3.09624043,2075.4,2075.3,44.0078]
[1742988553382,4.40224043,2075.4,2075.3,44.0078]
[1742988557773,4.40224043,2075.4,2075.3,44.4678]
[1742988557978,4.40224043,2075.4,2075.3,44.0078]
[1742988560675,4.40224043,2075.4,2075.3,46.0778]
[1742988561085,3.09624043,2075.4,2075.3,46.0778]
[1742988562180,3.09624043,2075.4,2075.3,42.87]
[1742988562580,3.09624043,2075.4,2075.3,44.2732]
[1742988563181,0.00724043,2075.4,2075.3,44.2732]
[1742988564280,0.00724043,2075.4,2075.3,44.90120079]
[1742988565185,0.00724043,2075.4,2075.3,4.10120079]
[1742988565382,1.30164043,2075.4,2075.3,4.10120079]
[1742988565689,1.30164043,2075.4,2075.3,1.4032]
[1742988570392,1.30164043,2075.4,2075.3,1.7832]
[1742988570894,1.30164043,2075.4,2075.3,1.4032]
[1742988575395,0.00724043,2075.4,2075.3,1.4032]
[1742988575887,1.34354043,2075.4,2075.3,1.4032]
[1742988576094,3.09524043,2075.4,2075.3,1.8532]
[1742988578295,3.09524043,2075.4,2075.3,3.7932]
[1742988578485,3.09524043,2075.4,2075.3,1.4032]
[1742988578688,4.40004043,2075.4,2075.3,1.4032]
[1742988579190,4.40004043,2075.4,2075.3,2.03164668]
[1742988579795,4.40004043,2075.4,2075.3,1.4032]
[1742988580497,4.40004043,2075.4,2075.3,2.03170168]
[1742988582391,4.40004043,2075.4,2075.3,1.4032]
[1742988586102,4.40004043,2075.4,2075.3,2.03169464]
[1742988594308,4.40004043,2075.4,2075.3,1.4032]
[1742988596009,3.09524043,2075.4,2075.3,1.8532]
[1742988596210,3.09524043,2075.4,2075.3,1.4032]
[1742988601111,3.09524043,2075.4,2075.3,1.8332]
[1742988601313,0.00724043,2075.4,2075.3,6.571]
[1742988601512,6.2948,2075.7,2075.3,6.571]
[1742988601812,6.2948,2075.7,2075.4,1.9775]
[1742988602014,6.2948,2075.7,2075.5,1.2752]
[1742988602321,3.2078,2075.7,2075.5,1.2752]
[1742988602910,4.6088,2075.7,2075.5,3.3352]
[1742988603219,4.6088,2075.7,2075.5,1.2752]
[1742988603416,4.6088,2075.7,2075.6,1.2752]
[1742988604208,5.2549,2075.7,2075.6,1.2752]
[1742988605612,4.6088,2075.7,2075.6,1.2752]
[1742988606520,5.2548,2075.7,2075.6,1.2752]
[1742988612934,8.58505395,2075.7,2075.1,40.8]
[1742988613228,2.69717343,2075.6,2075.2,1.4049]
[1742988613434,4.4618,2075.5,2075.2,1.4049]
[1742988613731,1.3748,2075.4,2075.2,1.4049]
[1742988616034,1.3748,2075.4,2075.3,1.3217]
[1742988616329,3.087,2075.4,2075.3,3.5017]
[1742988617031,3.087,2075.5,2075.3,5.15735075]
[1742988617236,3.087,2075.5,2075.4,1.3386]
[1742988617539,3.087,2075.5,2075.4,1.96645075]
[1742988618037,3.087,2075.5,2075.4,1.3386]
[1742988621736,1.3952,2075.6,2075.4,1.3386]
[1742988621931,1.3952,2075.6,2075.5,0.6813]
[1742988622131,3.087,2075.6,2075.5,1.3312]
[1742988623438,4.3659,2075.6,2075.5,1.3312]
[1742988624339,4.3659,2075.6,2075.4,1.3386]
[1742988624543,1.9641,2075.5,2075.2,0.67]
[1742988624738,4.4867,2075.4,2075.2,1.3832]
[1742988624932,4.3659,2075.3,2075.2,1.3832]
[1742988630149,7.5737,2075.3,2075.2,1.3832]
[1742988631042,0.6852,2075.5,2075.2,4.591]
[1742988631343,3.087,2075.3,2075.2,4.591]
[1742988631543,3.087,2075.3,2075.2,3.2078]
[1742988633551,3.087,2075.3,2075.1,41.47]
[1742988634550,3.087,2075.3,2075.1,43.65]
[1742988635853,3.087,2075.3,2075.1,41.47]
[1742988638856,3.087,2075.3,2075.1,43.84]
[1742988640057,3.087,2075.3,2075.2,0.62845942]
[1742988641947,3.087,2075.3,2075.2,1.97355942]
[1742988643055,3.087,2075.3,2075.2,2.61965942]
[1742988645148,1.3303,2075.5,2075.2,2.61965942]
[1742988645456,3.086,2075.4,2075.3,1.2838]
[1742988645853,3.086,2075.4,2075.3,1.91225942]
[1742988646260,3.7664,2075.4,2075.3,0.62845942]
[1742988646749,5.1189,2075.4,2075.1,42.7538]
[1742988646948,2.038,2075.3,2075.1,42.7538]
[1742988647148,1.3918,2075.2,2075.1,42.7538]
[1742988648952,1.3918,2075.2,2075.1,42.0838]
[1742988656567,1.3918,2075.2,2075.1,40.8]
[1742988656763,3.97169966,2075.2,2074.4,3.8586]
[1742988657067,3.2078,2074.9,2074.5,1.92382482]
[1742988657266,3.7894,2074.8,2074.6,42.095]
[1742988657464,5.0771,2074.8,2074.6,42.095]
[1742988657668,3.7894,2074.8,2074.7,1.295]
[1742988658672,3.7894,2074.8,2074.5,0.00724043]
[1742988658969,0.6463,2074.7,2074.5,0.00724043]
[1742988659569,3.7894,2074.8,2074.5,0.00724043]
[1742988659769,3.7894,2074.8,2074.5,1.40034043]
[1742988659963,3.7894,2074.8,2074.6,1.3081]
[1742988660165,0.7034,2074.8,2074.6,1.3081]
[1742988660366,3.087,2074.7,2074.6,1.3081]
[1742988661666,0.7034,2074.8,2074.6,1.3081]
[1742988662070,3.087,2074.7,2074.6,1.3081]
[1742988662469,3.087,2074.7,2074.5,0.00724043]
[1742988662666,0.7034,2074.8,2074.5,0.00724043]
[1742988662871,3.087,2074.7,2074.5,1.33784043]
[1742988663571,0.7034,2074.8,2074.5,1.33784043]
[1742988663777,3.087,2074.6,2074.5,1.33784043]
[1742988670871,3.087,2074.6,2074.5,4.26154043]
[1742988671274,3.087,2074.6,2074.5,2.02154043]
[1742988675078,0.00724043,2074.8,2074.5,2.02154043]
[1742988675277,3.087,2074.7,2074.6,1.3651]
[1742988677972,4.4593,2074.7,2074.6,1.3651]
[1742988678879,4.4593,2074.7,2074.6,1.8051]
[1742988679180,4.4593,2074.7,2074.6,1.3651]
[1742988680083,3.087,2074.7,2074.6,1.8051]
[1742988680380,3.087,2074.7,2074.6,1.3651]
[1742988680770,4.4134,2074.7,2074.6,1.3651]
[1742988690983,1.3264,2074.7,2074.6,1.3651]
[1742988691183,0.00724043,2074.8,2074.6,6.7529]
[1742988691492,0.00724043,2074.8,2074.7,0.6398]
[1742988691691,0.00724043,2074.8,2074.7,4.0025]
[1742988691888,0.00724043,2074.8,2074.7,2.65217084]
[1742988692191,0.00724043,2074.8,2074.7,4.68217084]
[1742988695994,6.2948,2075.1,2074.7,4.68217084]
[1742988696299,6.2948,2075.1,2074.8,2.0662]
[1742988696600,6.2948,2075.1,2074.9,1.3617]
[1742988696910,1.3039,2075.0,2074.9,2.43137084]
[1742988698395,1.3039,2075.0,2074.9,1.99137084]
[1742988698596,1.3039,2075.0,2074.9,1.3617]
[1742988699287,1.3039,2075.0,2074.9,2.0132]
[1742988699488,4.4579,2075.0,2074.5,0.00724043]
[1742988699701,3.2078,2074.8,2074.5,0.00724043]
[1742988699902,3.094,2074.7,2074.5,0.00724043]
[1742988700095,5.0366,2074.7,2074.5,0.00724043]
[1742988700401,1.2886,2074.6,2074.5,0.00724043]
[1742988702207,3.86851987,2074.6,2073.6,2.5921]
[1742988702406,3.2078,2074.4,2073.8,3.2078]
[1742988702607,4.5034,2074.3,2073.9,1.291]
[1742988702801,1.4044,2074.2,2073.9,1.291]
[1742988703003,1.4044,2074.2,2074.0,40.8]
[1742988711311,4.6122,2074.2,2074.0,40.8]
[1742988711924,1.285,2074.1,2074.0,40.8]
[1742988716216,1.285,2074.1,2073.9,1.4067]
[1742988716418,3.098,2074.0,2073.9,1.4067]
[1742988716918,3.098,2074.0,2073.9,42.2067]
[1742988717320,3.098,2074.0,2073.9,1.4067]
[1742988717621,3.098,2074.0,2073.8,0.00724043]
[1742988717815,1.2753,2073.9,2073.8,40.80724043]
[1742988719325,4.4831,2073.9,2073.8,0.00724043]
[1742988719511,4.4831,2073.9,2072.4,5.896]
[1742988719512,7.6364,2073.9,2073.2,5.1245]
[1742988719822,1.2753,2073.8,2073.3,42.7559]
[1742988720023,3.2078,2073.6,2073.4,1.3103]
[1742988720324,1.3268,2073.5,2073.4,1.3103]
[1742988720714,1.3268,2073.5,2073.3,41.48524043]
[1742988720922,3.099,2073.4,2073.3,40.80724043]
[1742988721113,3.099,2073.4,2073.3,41.47134043]
[1742988726622,3.104,2073.4,2073.3,41.47134043]
[1742988731525,3.104,2073.4,2073.3,43.47134043]
[1742988731734,3.104,2073.4,2073.3,41.47134043]
[1742988731939,3.104,2073.4,2073.3,42.78554043]
[1742988732840,3.2078,2073.9,2073.3,47.62554043]
[1742988733141,3.2078,2073.9,2073.4,1.3464]
[1742988733445,3.106,2073.8,2073.5,3.2078]
[1742988733738,3.106,2073.8,2073.6,43.502]
[1742988733931,3.106,2073.8,2073.7,1.3464]
[1742988734132,3.105,2073.8,2073.7,1.3464]
[1742988737138,4.4647,2073.8,2073.7,1.3464]
[1742988737735,3.105,2073.8,2073.7,1.3464]
[1742988740041,4.3849,2073.8,2073.7,1.3464]
[1742988740646,3.105,2073.8,2073.7,1.3464]
[1742988747844,1.3381,2073.9,2073.7,1.3464]
[1742988748049,1.3381,2073.9,2073.7,3.4464]
[1742988748050,3.097,2073.9,2073.7,3.4464]
[1742988748450,3.097,2073.9,2073.8,42.1316]
[1742988754855,3.094,2074.0,2073.8,42.1316]
[1742988755068,3.094,2074.0,2073.9,2.0113]
[1742988756562,3.8702,2074.2,2073.9,2.0113]
[1742988756762,3.093,2074.1,2074.0,2.0216]
[1742988757862,3.093,2074.1,2073.8,40.8]
[1742988758055,0.6538,2074.0,2073.8,42.1323]
[1742988758259,0.7011,2073.9,2073.8,42.1323]
[1742988760665,0.7011,2073.9,2073.8,40.8]
[1742988760866,3.9089,2073.9,2073.5,1.3388]
[1742988761061,3.092,2073.8,2073.5,1.3388]
[1742988761261,3.092,2073.8,2073.6,40.8]
[1742988761454,0.6464,2073.7,2073.6,40.8]
[1742988764562,0.6464,2073.7,2073.4,1.918]
[1742988764758,3.2078,2073.6,2073.4,2.059]
[1742988764970,3.7385,2073.5,2073.4,42.859]
[1742988766466,3.093,2073.5,2073.4,42.859]
[1742988769071,3.093,2073.5,2073.4,41.58]
[1742988769681,3.093,2073.5,2073.3,0.00724043]
[1742988769982,0.654,2073.4,2073.1,1.323]
[1742988770275,0.654,2073.4,2073.2,40.8]
[1742988772078,0.654,2073.4,2073.2,41.4927]
[1742988772889,1.354,2073.3,2073.2,41.4927]
[1742988773981,3.093,2073.5,2073.2,41.4927]
[1742988774187,4.446,2073.4,2073.3,0.7009]
[1742988774777,4.446,2073.4,2073.3,41.5009]
[1742988783487,4.446,2073.4,2073.3,40.8]
[1742988787391,4.5259735,2073.4,2073.3,40.8]
[1742988787894,4.446,2073.4,2073.2,1.3669]
[1742988788092,3.092,2073.4,2073.2,1.3669]
[1742988788287,4.5394,2073.5,2073.3,40.8]
[1742988788490,3.089,2073.4,2073.3,40.8]
[1742988791887,4.3879,2073.4,2073.3,40.8]
[1742988792599,4.3879,2073.4,2073.2,1.3669]
[1742988792797,1.2989,2073.3,2073.2,1.3669]
[1742988793200,3.089,2073.4,2073.2,1.3669]
[1742988793396,4.4729,2073.4,2073.2,1.3669]
[1742988793592,1.3839,2073.3,2073.2,1.3669]
[1742988797003,1.3839,2073.3,2073.2,3.4269]
[1742988797206,3.089,2073.3,2073.2,1.3669]
[1742988797707,3.089,2073.3,2073.2,1.9985806]
[1742988799405,3.089,2073.3,2073.2,4.3085806]
[1742988799702,3.2078,2073.5,2073.2,4.3085806]
[1742988799906,3.089,2073.4,2073.2,3.6769]
[1742988800204,3.089,2073.4,2073.3,0.63163212]
[1742988800391,3.089,2073.4,2073.3,41.43163212]
[1742988801401,3.089,2073.4,2073.3,40.8]
[1742988802408,3.089,2073.4,2073.3,42.2151]
[1742988803099,6.2968,2073.5,2073.3,44.1951]
[1742988803300,6.2968,2073.5,2073.4,1.4151]
[1742988803501,3.089,2073.5,2073.4,1.4151]
[1742988805005,3.089,2073.5,2073.2,1.3669]
[1742988805200,1.3931,2073.4,2073.3,1.99676941]
[1742988805504,1.3931,2073.4,2073.3,42.79676941]
[1742988805707,1.3931,2073.4,2073.3,42.1652]
[1742988806205,1.3931,2073.4,2073.3,44.4152]
[1742988806408,1.3931,2073.4,2073.3,44.0852]
[1742988806608,1.3931,2073.4,2073.3,44.71673444]
[1742988807202,3.089,2073.5,2073.3,44.71673444]
[1742988807405,3.089,2073.5,2073.4,1.3652]